bitfinex-derivatives/quotes_ETHF0:USTF0_20250629
["timestamp","ask_amount","ask_price","bid_price","bid_amount"]
[1751236170028,3.2078,2477.4,2476.8,16.215369]
[1751236170324,3.2078,2477.4,2477.3,0.64571]
[1751236170522,3.2078,2477.4,2476.9,1.5862]
[1751236170523,3.2078,2477.7,2477.6,0.64562]
[1751236170724,3.2261,2477.9,2477.2,3.2351]
[1751236170928,9.623,2478.3,2478.1,0.6455]
[1751236170929,2.40705701,2478.2,2478.1,0.6455]
[1751236171323,5.61485701,2478.3,2478.1,0.6455]
[1751236171627,5.61485701,2478.3,2478.0,0.64551]
[1751236171827,5.61485701,2478.3,2477.8,6.3225]
[1751236172028,3.2078,2478.3,2478.1,0.64549]
[1751236172224,3.2078,2478.3,2477.8,6.3225]
[1751236172425,3.2078,2478.3,2478.1,0.64549]
[1751236172626,3.2078,2478.3,2478.2,1.5025]
[1751236172931,3.85313,2478.8,2478.4,0.64541]
[1751236173130,3.85313,2478.8,2478.5,0.64539]
[1751236173131,3.2078,2478.8,2478.5,0.64539]
[1751236173424,0.64536,2478.7,2478.4,3.2078]
[1751236173630,6.34887693,2479.8,2478.6,10.045138]
[1751236173822,0.64497,2480.2,2479.7,3.2078]
[1751236174022,0.64502,2480.0,2479.8,3.2078]
[1751236174325,4.00916693,2480.3,2479.8,3.2078]
[1751236174529,11.1102,2480.7,2480.1,3.2078]
[1751236174729,11.1102,2480.7,2480.3,3.2078]
[1751236174730,0.6449,2480.4,2480.3,3.2078]
[1751236174925,0.64483,2480.7,2480.2,3.2078]
[1751236175225,3.2078,2481.3,2480.5,3.2078]
[1751236175430,3.2078,2481.3,2480.6,1.5293]
[1751236175431,0.64478,2480.9,2480.6,1.5293]
[1751236175631,3.2078,2481.3,2479.8,3.2078]
[1751236175632,5.022569,2480.8,2479.8,3.2078]
[1751236175930,8.230369,2480.5,2479.7,3.2078]
[1751236176132,9.6064,2480.4,2479.7,3.2078]
[1751236176430,0.64506,2479.8,2479.7,3.2078]
[1751236176829,5.022569,2480.2,2479.4,3.2078]
[1751236177131,0.64512,2479.6,2479.4,3.2078]
[1751236177332,3.2078,2480.5,2479.4,8.230369]
[1751236177527,0.64506,2479.8,2479.7,3.2078]
[1751236177736,0.64506,2479.8,2479.7,3.08511315]
[1751236178130,10.022569,2479.8,2478.9,3.2078]
[1751236178330,0.64527,2479.0,2478.9,3.2078]
[1751236178530,0.64526,2479.1,2478.9,3.2078]
[1751236178726,7.979,2479.4,2478.7,1.5346]
[1751236179233,0.64525,2479.1,2478.8,3.2078]
[1751236179534,0.64528,2479.0,2478.8,4.8356]
[1751236179731,7.979,2479.4,2478.8,4.8356]
[1751236179732,0.64525,2479.1,2478.8,4.8356]
[1751236179932,0.64527,2479.0,2478.8,4.8356]
[1751236180132,0.64525,2479.1,2478.8,4.8356]
[1751236180333,0.64518,2479.4,2478.9,0.64528]
[1751236180533,3.2078,2479.8,2479.0,1.6278]
[1751236180733,3.2078,2479.8,2479.3,3.2078]
[1751236181027,3.2078,2479.8,2479.4,1.6278]
[1751236181028,0.64513,2479.6,2479.4,1.6278]
[1751236181233,3.2078,2479.8,2479.4,1.6278]
[1751236181425,56.392,2480.0,2479.4,1.6278]
[1751236181426,0.64509,2479.7,2479.4,1.6278]
[1751236181625,56.392,2480.0,2479.3,3.2078]
[1751236181626,0.64514,2479.5,2479.3,3.2078]
[1751236181826,1.5582,2479.9,2479.0,4.7812]
[1751236182038,4.82051,2479.8,2479.0,4.7812]
[1751236182338,1.5582,2479.7,2479.0,3.2078]
[1751236182631,0.64524,2479.1,2479.0,3.2078]
[1751236182838,0.64531,2478.9,2478.7,3.2078]
[1751236183032,0.64532,2478.8,2478.7,3.2078]
[1751236183235,7.978,2479.2,2478.7,3.2078]
[1751236183435,0.64531,2478.9,2478.5,0.64538]
[1751236183629,0.64532,2478.8,2478.5,1.5734]
[1751236183834,0.64538,2478.6,2478.2,0.64546]
[1751236184036,0.64538,2478.6,2478.1,38.6358]
[1751236184037,1.5582,2478.7,2478.1,11.1858]
[1751236184236,7.978,2478.6,2478.1,3.2078]
[1751236184437,0.64543,2478.4,2478.1,3.2078]
[1751236184737,2.30151,2478.5,2478.1,3.8533]
[1751236185134,0.64542,2478.4,2478.1,3.2078]
[1751236185336,0.64548,2478.2,2478.1,3.2078]
[1751236185536,0.64544,2478.4,2478.1,3.2078]
[1751236185738,1.6561,2478.5,2478.1,3.85329]
[1751236185739,2.30151,2478.5,2478.1,3.85329]
[1751236186034,0.64542,2478.4,2478.1,3.85329]
[1751236186239,0.64545,2478.3,2478.1,3.2078]
[1751236186536,1.6561,2478.5,2478.1,3.2078]
[1751236186938,6.636199,2478.3,2477.5,3.2078]
[1751236187242,0.64563,2477.6,2477.5,3.2078]
[1751236187836,0.64562,2477.7,2477.5,3.2078]
[1751236188037,0.64563,2477.6,2477.5,3.2078]
[1751236188237,2.27293,2477.6,2477.5,3.2078]
[1751236189139,0.64562,2477.7,2477.5,3.2078]
[1751236189341,0.64561,2477.7,2477.5,3.2078]
[1751236189641,0.64563,2477.6,2477.5,3.2078]
[1751236191246,0.64563,2477.6,2476.9,9.84470741]
[1751236191247,0.64567,2477.5,2477.2,3.85353]
[1751236191542,2.17703,2477.7,2477.3,0.64569]
[1751236191737,1.5314,2477.7,2477.4,0.64568]
[1751236191934,0.64555,2478.0,2477.6,3.2078]
[1751236192133,0.64553,2478.0,2477.6,3.2078]
[1751236192333,0.64553,2478.0,2477.7,0.64559]
[1751236192532,8.039,2478.2,2477.7,0.64559]
[1751236192737,0.64554,2478.0,2477.7,0.64559]
[1751236192939,0.64551,2478.1,2477.6,8.230369]
[1751236193138,0.64551,2478.1,2477.8,0.64556]
[1751236193641,0.64554,2478.0,2477.7,2.30149]
[1751236193838,9.5704,2478.5,2478.0,0.64551]
[1751236194038,0.64544,2478.4,2478.1,0.6455]
[1751236194237,0.64545,2478.3,2478.0,2.18671]
[1751236194738,0.64545,2478.3,2478.1,0.6455]
[1751236194936,0.64544,2478.4,2478.1,0.6455]
[1751236195239,0.64542,2478.5,2478.2,0.64547]
[1751236195544,0.64542,2478.5,2478.3,0.5183049]
[1751236195742,3.85319,2478.6,2478.3,0.64544]
[1751236195942,0.6454,2478.5,2478.2,0.64546]
[1751236196138,0.6454,2478.5,2478.3,0.51916316]
[1751236196338,1.5019,2478.7,2478.3,0.64543]
[1751236196339,2.14727,2478.7,2478.3,0.64543]
[1751236196540,0.64537,2478.7,2478.3,0.64543]
[1751236196739,0.64538,2478.6,2478.3,2.27553]
[1751236196934,0.6454,2478.5,2478.3,1.6301]
[1751236197143,0.64538,2478.6,2478.3,1.6301]
[1751236197440,0.64538,2478.6,2478.4,0.51945022]
[1751236197633,9.6785,2478.8,2478.2,3.2078]
[1751236197836,11.2639,2478.8,2478.3,0.51953317]
[1751236198036,0.64542,2478.5,2478.4,0.51953317]
[1751236198744,3.2249,2478.8,2478.2,3.2078]
[1751236198943,0.64542,2478.5,2478.3,0.51998678]
[1751236199139,3.2249,2478.8,2478.4,0.51998678]
[1751236199333,3.2249,2478.8,2478.5,4.37354493]
[1751236199334,0.64534,2478.8,2478.5,4.37354493]
[1751236199537,0.64531,2478.9,2478.6,1.16572493]
[1751236199737,1.5664,2479.1,2478.5,3.2078]
[1751236199935,3.2078,2479.3,2478.6,0.5202606]
[1751236200138,3.2078,2479.9,2479.1,1.61311]
[1751236200338,3.2078,2480.3,2479.8,3.2078]
[1751236200637,3.2078,2480.6,2479.9,13.5955955]
[1751236200842,3.2078,2480.6,2480.2,3.2078]
[1751236201146,3.2078,2481.0,2480.3,8.57259532]
[1751236201340,3.1913274,2481.4,2480.8,8.230369]
[1751236201544,3.1913274,2481.4,2481.1,3.2078]
[1751236201545,0.6447,2481.2,2481.1,3.2078]
[1751236201734,0.02023658,2481.4,2481.0,3.2078]
[1751236201938,0.02023658,2481.4,2480.4,3.2204]
[1751236201939,0.02023658,2481.4,2481.3,3.2078]
[1751236202236,3.02429303,2483.1,2481.8,3.2078]
[1751236202437,19.24246328,2485.0,2481.8,3.2078]
[1751236202438,3.2078,2483.7,2482.7,3.2078]
[1751236202634,19.24246328,2485.0,2481.4,0.64463]
[1751236202635,0.64444,2482.2,2481.4,0.64463]
[1751236202837,3.2078,2482.4,2481.9,3.2078]
[1751236203040,3.2078,2482.4,2481.4,5.26216257]
[1751236203041,0.64457,2481.7,2481.4,5.26216257]
[1751236203239,3.2078,2482.1,2481.5,1.26824959]
[1751236203437,0.64433,2482.7,2481.8,8.230369]
[1751236203642,3.2078,2483.1,2482.5,2.33685373]
[1751236203947,3.2078,2483.1,2482.1,11.34617397]
[1751236203948,1.5162,2483.0,2482.6,1.31072983]
[1751236204143,0.02023658,2482.5,2482.0,3.2078]
[1751236204336,0.02023658,2482.5,2481.7,1.2899448]
[1751236204543,3.2078,2482.5,2481.6,3.2078]
[1751236204839,3.2078,2482.2,2481.6,3.2078]
[1751236205038,3.2078,2482.2,2481.3,3.2078]
[1751236205039,0.02023658,2481.7,2481.3,3.2078]
[1751236205244,0.02023658,2481.4,2480.8,1.14698374]
[1751236205438,5.022569,2481.1,2480.8,0.94943704]
[1751236205639,0.64485,2480.6,2480.5,0.746279]
[1751236205943,0.6449,2480.4,2480.3,3.11580497]
[1751236206144,0.66516658,2480.3,2480.2,3.11580497]
[1751236206340,0.66516658,2480.3,2480.1,2.2917187]
[1751236206341,3.22803658,2480.3,2480.1,2.2917187]
[1751236206648,5.022569,2480.6,2480.0,2.2917187]
[1751236206649,0.64498,2480.1,2480.0,2.2917187]
[1751236207043,3.2078,2480.6,2480.0,2.2917187]
[1751236207244,0.66512658,2480.5,2480.2,3.2078]
[1751236207545,4.7183,2481.2,2480.4,5.022569]
[1751236207748,3.2078,2481.5,2480.9,3.2078]
[1751236207945,3.2078,2481.8,2481.3,3.2078]
[1751236208144,3.87257658,2481.8,2481.3,4.8465]
[1751236208343,0.02023658,2481.8,2481.3,4.8465]
[1751236208552,0.64458,2481.7,2481.3,1.6387]
[1751236208845,0.02023658,2481.7,2481.3,1.6387]
[1751236209142,0.02023658,2481.7,2481.1,8.033]
[1751236209347,0.02023658,2481.2,2480.7,3.2078]
[1751236209740,0.66499658,2481.0,2480.7,3.2078]
[1751236209943,0.66499658,2481.0,2479.6,2.2917187]
[1751236209944,0.02023658,2480.8,2480.1,3.2078]
[1751236210148,3.2078,2480.8,2480.1,3.2078]
[1751236210442,3.2078,2480.8,2479.9,9.6436]
[1751236210443,0.02023658,2480.6,2480.2,0.64495]
[1751236210749,1.6003,2480.7,2480.5,3.85266]
[1751236211049,12.8411,2481.3,2480.5,3.2078]
[1751236211241,0.02023658,2481.0,2480.5,3.2078]
[1751236211441,0.02023658,2480.9,2480.5,3.2078]
[1751236211644,3.2078,2481.3,2480.5,3.2078]
[1751236211645,0.02023658,2481.2,2480.7,0.64481]
[1751236211846,3.2078,2481.4,2480.6,1.6558]
[1751236212046,48.379,2482.1,2480.5,3.2078]
[1751236212047,0.02023658,2480.9,2480.5,3.2078]
[1751236212240,3.2078,2481.1,2480.5,3.2078]
[1751236212445,3.2078,2481.1,2480.3,8.033]
[1751236212446,0.64463,2481.5,2480.6,3.2078]
[1751236212751,3.2078,2481.6,2480.6,3.2078]
[1751236212752,8.032,2481.4,2480.6,3.2078]
[1751236212946,0.02023658,2481.1,2480.8,0.64479]
[1751236213446,9.6136,2481.4,2480.8,0.64479]
[1751236213640,0.02023658,2481.1,2480.9,0.64477]
[1751236213843,0.02023658,2481.1,2480.7,0.6448]
[1751236214042,0.02023658,2481.1,2480.6,3.2078]
[1751236214444,0.02023658,2480.9,2480.6,3.2078]
[1751236214641,0.02023658,2480.9,2480.6,3.85265]
[1751236214851,1.5284,2481.0,2480.6,3.85265]
[1751236215148,0.02023658,2480.8,2480.6,3.2078]
[1751236215347,0.02023658,2480.8,2480.6,3.85264]
[1751236215649,0.02023658,2480.7,2480.6,3.2078]
[1751236215850,0.02023658,2480.7,2480.6,3.85265]
[1751236216151,0.64482,2480.8,2480.6,3.2078]
[1751236216347,0.64482,2480.8,2479.7,7.01443793]
[1751236216348,0.64492,2480.4,2480.1,3.2078]
[1751236216551,4.8247,2480.7,2480.1,3.2078]
[1751236216751,0.02023658,2480.4,2480.2,0.64494]
[1751236216952,0.02023658,2480.3,2480.1,3.85278]
[1751236217148,0.64494,2480.3,2480.1,3.2078]
[1751236217450,1.54863658,2480.2,2479.8,3.2078]
[1751236217653,0.02023658,2480.0,2479.9,1.29728945]
[1751236217856,0.02023658,2479.9,2479.6,1.29728945]
[1751236218056,3.2078,2480.5,2479.8,3.2078]
[1751236218246,4.83343658,2480.5,2480.1,3.2078]
[1751236218444,4.8132,2480.5,2480.0,1.29728945]
[1751236218650,0.64497,2480.2,2479.8,3.2078]
[1751236218845,1.6054,2480.1,2479.9,1.29728945]
[1751236219152,1.6054,2480.1,2479.8,3.2078]
[1751236219153,0.66526658,2479.9,2479.8,3.2078]
[1751236219653,0.64511,2479.6,2479.5,1.29728945]
[1751236219854,0.64511,2479.6,2479.1,1.29728945]
[1751236219855,0.64522,2479.2,2479.1,1.29728945]
[1751236220055,0.64524,2479.1,2479.0,1.29728945]
[1751236220257,13.69344,2479.1,2479.0,1.29728945]
[1751236220452,13.71367658,2479.1,2479.0,1.29728945]
[1751236221057,0.64532,2478.8,2478.7,2.2917187]
[1751236221254,0.64535,2478.7,2478.4,3.04663029]
[1751236221453,0.02023658,2478.5,2478.4,3.04663029]
[1751236221652,0.02023658,2478.5,2478.3,6.89986029]
[1751236221953,0.02023658,2478.4,2478.3,3.85324]
[1751236222159,9.8729,2478.6,2478.4,0.64541]
[1751236222655,9.8729,2478.6,2478.5,0.6454]
[1751236222855,9.8729,2478.6,2478.4,2.29405783]
[1751236223052,48.381,2479.2,2478.4,7.29405783]
[1751236223259,8.7189,2479.3,2478.8,0.48399]
[1751236223560,0.02023658,2478.9,2478.6,2.29405783]
[1751236223763,0.48397,2478.9,2478.6,2.29405783]
[1751236224058,0.02023658,2478.7,2478.6,2.29405783]
[1751236224454,0.02023658,2478.7,2478.6,3.04663029]
[1751236224656,1.63933658,2478.7,2478.6,3.04663029]
[1751236224855,1.63933658,2478.7,2478.6,3.53066029]
[1751236225060,1.63933658,2478.7,2478.6,0.48403]
[1751236225360,1.63933658,2478.7,2478.5,6.25443029]
[1751236225568,0.48407,2478.4,2478.3,3.89475622]
[1751236225766,8.72107,2478.4,2478.3,3.89475622]
[1751236225962,8.72107,2478.4,2477.9,3.2078]
[1751236225963,13.237,2478.4,2477.9,3.2078]
[1751236226167,0.4842,2477.7,2477.6,7.78951244]
[1751236226369,3.2078,2478.1,2477.5,3.69203]
[1751236226563,2.10325,2478.0,2477.5,3.2078]
[1751236226766,0.48418,2477.9,2477.4,0.48425]
[1751236226965,1.5438,2477.8,2477.5,0.48424]
[1751236227265,1.5438,2477.8,2477.2,3.2078]
[1751236228168,1.5438,2477.8,2477.6,0.48421]
[1751236228368,1.5438,2477.8,2477.5,3.69203]
[1751236228662,1.5438,2477.8,2477.2,3.2078]
[1751236229069,8.238,2477.9,2477.5,3.2078]
[1751236229268,3.2078,2478.1,2477.7,0.4842]
[1751236229463,3.2078,2478.1,2477.8,0.48418]
[1751236229670,1.5438,2478.0,2477.7,0.4842]
[1751236229969,1.5438,2478.0,2477.9,0.48416]
[1751236230175,1.5438,2478.0,2477.7,0.48418]
[1751236230465,1.5438,2478.0,2477.8,0.48418]
[1751236230667,1.5438,2478.0,2477.5,3.2078]
[1751236230668,0.48418,2477.9,2477.5,3.69203]
[1751236230868,8.24,2478.2,2477.5,3.2078]
[1751236230869,1.6367,2477.8,2477.5,3.2078]
[1751236231168,9.8767,2477.8,2477.2,3.2078]
[1751236231363,0.48425,2477.5,2477.2,3.2078]
[1751236231566,1.6367,2477.4,2477.2,3.2078]
[1751236231765,2.12096,2477.4,2477.2,3.2078]
[1751236231968,8.24,2477.9,2477.2,3.2078]
[1751236232169,57.13212,2478.2,2477.7,0.48419]
[1751236232370,1.6367,2478.1,2477.9,2.31144891]
[1751236232570,0.48414,2478.0,2477.9,2.31144891]
[1751236232773,2.12083,2478.1,2477.9,2.31144891]
[1751236233077,1.6367,2478.1,2478.0,1.3039854]
[1751236233271,2.12083,2478.1,2478.0,1.3039854]
[1751236233571,9.8777,2478.1,2478.0,1.3039854]
[1751236233767,10.36183,2478.1,2478.0,1.3039854]
[1751236234365,3.2078,2478.3,2478.0,1.3039854]
[1751236234568,3.2078,2478.6,2478.4,0.48406]
[1751236234768,3.2078,2478.6,2478.2,3.2078]
[1751236235173,3.2078,2478.6,2478.3,0.48408]
[1751236235368,1.6284,2478.5,2477.9,3.2078]
[1751236235867,4.842,2479.4,2478.3,3.2078]
[1751236236063,1.5226,2479.2,2478.8,0.48397]
[1751236236263,1.5226,2479.2,2478.5,3.2078]
[1751236236462,0.48395,2479.0,2478.5,3.2078]
[1751236236666,3.2078,2479.3,2478.9,0.48396]
[1751236236862,3.2078,2479.3,2478.9,3.2078]
[1751236237165,2.00651,2479.2,2478.5,3.2078]
[1751236237367,1.5226,2479.2,2478.9,3.2078]
[1751236237575,1.5226,2479.2,2478.9,0.48396]
[1751236237868,1.5226,2479.2,2479.0,0.48394]
[1751236238072,1.5226,2479.2,2478.9,3.2078]
[1751236238273,3.2078,2479.3,2479.0,0.48394]
[1751236238475,4.7304,2479.9,2479.5,0.48384]
[1751236238770,3.2078,2480.2,2479.5,11.4488]
[1751236238975,3.2078,2480.2,2479.6,1.5919]
[1751236239170,3.2078,2480.2,2480.0,0.48375]
[1751236239472,3.2078,2480.2,2479.6,1.5919]
[1751236239668,1.6662,2480.1,2479.5,3.2078]
[1751236239870,1.6662,2480.1,2479.8,0.48379]
[1751236240173,1.6662,2480.1,2479.5,3.2078]
[1751236240372,3.2078,2479.8,2479.2,3.2078]
[1751236240567,2.15001,2479.7,2479.3,1.23229011]
[1751236240774,1.6662,2479.7,2479.2,3.2078]
[1751236240968,1.5817,2480.1,2479.2,3.2078]
[1751236241275,0.48375,2480.0,2479.4,0.48386]
[1751236241477,0.48378,2479.9,2479.4,0.48386]
[1751236241675,1.5817,2480.1,2479.3,1.5919]
[1751236241977,1.6662,2480.3,2479.4,3.2078]
[1751236242178,1.564,2480.0,2479.4,3.2078]
[1751236242872,1.564,2480.0,2479.7,3.2078]
[1751236243181,0.48373,2480.2,2479.7,3.2078]
[1751236243373,11.4478,2480.5,2479.5,0.48384]
[1751236243574,2.04774,2480.1,2479.6,0.48383]
[1751236243773,1.564,2480.1,2479.7,3.2078]
[1751236244380,0.48379,2479.8,2479.4,11.4468]
[1751236244673,0.48385,2479.5,2479.4,3.2078]
[1751236245178,0.48384,2479.6,2479.4,3.2078]
[1751236245373,1.63,2479.9,2479.4,3.2078]
[1751236245580,1.63,2479.9,2479.5,0.48384]
[1751236245874,2.11378,2479.9,2479.5,0.48384]
[1751236246074,1.63,2479.9,2479.4,3.2078]
[1751236246275,8.239,2480.3,2479.4,3.2078]
[1751236246276,3.2078,2480.5,2479.8,3.2078]
[1751236246476,3.69147,2480.5,2480.0,0.48374]
[1751236246678,3.2078,2480.5,2480.4,0.48368]
[1751236246882,3.2078,2480.5,2480.1,3.2078]
[1751236247071,3.2078,2480.5,2480.0,3.2078]
[1751236247276,3.2078,2480.9,2480.8,0.4836]
[1751236247472,1.87503019,2481.5,2480.8,11.3378]
[1751236247675,6.40642093,2482.5,2481.4,3.2078]
[1751236247872,3.99195246,2482.7,2482.6,0.48325]
[1751236248071,7.98390493,2483.4,2482.5,4.99315992]
[1751236248277,7.98390493,2483.4,2483.3,3.2078]
[1751236248482,1.5632,2484.1,2483.3,3.2078]
[1751236249077,0.48305,2483.7,2483.3,3.2078]
[1751236249377,1.5632,2484.1,2483.6,3.2078]
[1751236249575,0.48309,2483.4,2483.3,3.2078]
[1751236249777,3.2078,2483.9,2483.0,8.13]
[1751236249982,3.2078,2483.9,2483.0,3.2078]
[1751236250182,3.2078,2483.9,2483.3,3.2078]
[1751236250183,1.5632,2483.8,2483.3,3.2078]
[1751236250480,3.6908,2483.9,2483.4,8.13]
[1751236250681,0.48305,2483.7,2483.3,8.126]
[1751236250980,3.2078,2483.9,2483.3,8.126]
[1751236250981,0.48307,2483.6,2483.3,8.126]
[1751236251281,0.48307,2483.6,2482.9,3.2078]
[1751236251282,1.6372,2483.6,2482.9,3.2078]
[1751236251476,3.2078,2483.4,2482.9,3.2078]
[1751236251678,0.48317,2483.0,2482.9,3.2078]
[1751236251874,0.48317,2483.0,2482.7,8.126]
[1751236252074,0.48321,2482.8,2482.7,8.126]
[1751236252479,0.48325,2482.6,2482.5,3.2078]
[1751236252681,0.48331,2482.3,2482.2,11.3338]
[1751236253082,0.48338,2481.9,2481.8,4.8798]
[1751236253378,1.6372,2482.5,2481.3,3.2078]
[1751236253379,0.48348,2481.4,2481.3,3.2078]
[1751236253579,0.48345,2481.6,2481.3,3.2078]
[1751236253885,3.2078,2482.6,2481.4,1.672]
[1751236254079,0.4834,2481.9,2481.7,3.2078]
[1751236254378,0.48338,2482.0,2481.7,3.2078]
[1751236254579,0.4834,2481.8,2481.7,3.2078]
[1751236254779,1.6281,2482.5,2481.7,3.2078]
[1751236254981,0.48339,2481.9,2481.7,3.2078]
[1751236255286,0.4834,2481.8,2481.7,3.2078]
[1751236255987,0.48346,2481.5,2481.4,3.2078]
[1751236256382,3.2078,2482.0,2481.4,3.2078]
[1751236256383,8.124,2482.1,2481.4,8.2078]
[1751236256582,1.6281,2482.4,2481.7,3.2078]
[1751236256782,0.48338,2482.0,2481.7,3.2078]
[1751236256981,1.6281,2482.3,2481.7,3.2078]
[1751236257180,3.2078,2483.2,2482.4,0.48329]
[1751236257381,1.5902,2483.3,2482.6,3.2078]
[1751236257382,0.48323,2482.7,2482.6,3.2078]
[1751236257689,0.48328,2482.5,2482.3,3.2078]
[1751236257879,4.8461,2483.2,2482.3,3.2078]
[1751236258081,0.48329,2482.4,2482.3,3.2078]
[1751236258283,3.2078,2482.9,2482.3,3.2078]
[1751236258483,0.48328,2482.5,2482.3,3.2078]
[1751236258990,0.48329,2482.4,2482.3,3.2078]
[1751236259381,1.6383,2482.8,2482.0,3.2078]
[1751236259382,1.20808,2482.7,2482.0,3.2078]
[1751236259585,1.6383,2482.3,2481.7,3.2078]
[1751236259786,0.48337,2482.0,2481.4,3.2078]
[1751236259986,0.48337,2482.0,2481.4,3.56717784]
[1751236260181,1.6383,2482.3,2481.7,3.2078]
[1751236260389,4.7553,2482.9,2482.2,3.2078]
[1751236260582,0.48319,2482.9,2482.5,3.2078]
[1751236260782,4.8837,2483.2,2482.6,0.48325]
[1751236260987,3.2078,2483.8,2483.1,3.2078]
[1751236261181,3.2078,2483.8,2482.6,8.123]
[1751236261182,2.63788,2483.8,2483.4,3.2078]
[1751236261387,1.6402,2485.2,2483.7,3.2078]
[1751236261585,1.6402,2485.2,2484.1,3.2078]
[1751236261586,3.3161,2485.2,2484.1,3.2078]
[1751236261781,11.4391,2485.2,2484.1,3.2078]
[1751236262089,18.44515596,2485.2,2483.8,4.8902]
[1751236262289,18.44515596,2485.2,2483.5,3.2078]
[1751236262290,3.2078,2484.6,2483.5,3.2078]
[1751236262492,1.6759,2484.5,2483.5,10.21385596]
[1751236262787,0.48295,2484.2,2483.6,9.6662]
[1751236262984,1.6759,2484.5,2483.6,9.6662]
[1751236263185,0.48297,2484.1,2483.8,3.2078]
[1751236263392,4.8837,2484.5,2483.5,3.2078]
[1751236263691,0.48304,2483.7,2483.2,3.2078]
[1751236263990,0.48308,2483.5,2483.2,3.2078]
[1751236264187,2.12776,2483.6,2483.0,8.12]
[1751236264392,2.12776,2483.6,2483.0,11.81096]
[1751236264586,0.48308,2483.5,2483.0,11.3278]
[1751236264788,2.12778,2483.5,2483.0,11.3278]
[1751236264990,0.48312,2483.3,2483.0,11.3278]
[1751236265186,1.6447,2483.5,2483.0,3.2078]
[1751236265386,0.48316,2483.1,2482.6,11.3268]
[1751236265592,1.6447,2483.2,2482.6,11.3268]
[1751236265789,2.12783,2483.2,2482.6,11.81004]
[1751236266093,1.6447,2483.2,2482.6,11.3268]
[1751236266589,0.48311,2483.3,2483.0,3.2078]
[1751236267089,1.5304,2483.4,2483.0,3.2078]
[1751236267294,0.48314,2483.2,2483.0,3.2078]
[1751236267494,0.48321,2482.8,2482.7,3.2078]
[1751236267788,1.5304,2483.1,2482.7,3.69103]
[1751236267994,0.48313,2483.3,2483.0,3.2078]
[1751236268195,0.4831,2483.4,2483.0,3.2078]
[1751236268391,0.48308,2483.5,2483.0,3.2078]
[1751236268692,1.5304,2483.5,2482.9,3.2078]
[1751236268898,1.5304,2483.5,2482.9,11.3268]
[1751236269195,0.48313,2483.2,2482.9,11.3268]
[1751236269690,0.48315,2483.1,2482.9,3.2078]
[1751236269898,1.5304,2483.5,2482.9,3.2078]
[1751236270092,0.48316,2483.1,2482.9,3.2078]
[1751236270789,4.7382,2483.5,2482.9,3.2078]
[1751236271194,0.48317,2483.0,2482.9,3.2078]
[1751236271597,3.2078,2483.2,2482.6,3.2078]
[1751236271988,3.2078,2483.8,2483.4,0.48309]
[1751236272189,3.69082,2483.8,2483.3,0.4831]
[1751236272498,0.48305,2483.7,2483.3,0.48311]
[1751236272707,2.13165,2483.7,2483.3,0.48311]
[1751236272997,0.48307,2483.6,2483.2,3.2078]
[1751236273198,1.6486,2483.5,2483.2,3.2078]
[1751236273402,1.6486,2483.5,2483.1,0.48314]
[1751236273593,1.6486,2483.5,2483.0,3.69096]
[1751236273792,3.2078,2483.8,2483.1,0.48314]
[1751236273993,1.6486,2483.7,2483.0,3.2078]
[1751236274192,1.6486,2483.7,2483.5,0.48307]
[1751236274397,1.6486,2483.7,2483.4,3.69089]
[1751236274589,2.13165,2483.7,2483.2,0.48312]
[1751236274793,1.6486,2483.7,2483.4,0.48309]
[1751236274993,3.2078,2484.2,2483.6,3.2078]
[1751236275194,3.23,2484.4,2483.9,3.2078]
[1751236275501,3.71291,2484.4,2483.9,3.69078]
[1751236275796,1.6486,2484.4,2484.1,0.48295]
[1751236275997,3.2078,2484.5,2484.4,0.4829]
[1751236276389,3.2078,2484.5,2484.3,0.48291]
[1751236276596,3.2078,2484.5,2484.0,2.09276]
[1751236276597,3.69068,2484.5,2484.0,2.09276]
[1751236276889,0.4829,2484.4,2484.0,8.78196]
[1751236277090,0.48291,2484.4,2483.9,3.2078]
[1751236277299,3.2078,2484.5,2484.0,0.48297]
[1751236277491,1.6161,2484.4,2483.9,3.2078]
[1751236277799,0.48292,2484.3,2483.9,0.48299]
[1751236278000,3.2078,2484.5,2484.1,0.48294]
[1751236278191,3.2078,2484.9,2484.2,8.298]
[1751236278392,3.2078,2485.3,2484.7,3.2078]
[1751236278594,3.69047,2485.6,2485.0,7.48883596]
[1751236278796,3.69047,2485.6,2484.8,9.9238]
[1751236278797,0.48273,2485.3,2484.8,9.9238]
[1751236279195,3.2078,2485.3,2484.5,1.13472398]
[1751236279399,4.8786,2485.6,2484.5,13.1316]
[1751236279603,4.8786,2485.6,2484.7,0.48283]
[1751236279798,3.2078,2484.9,2484.0,1.13472398]
[1751236280002,0.48288,2484.5,2484.1,3.2078]
[1751236280201,1.6708,2484.8,2483.8,8.298]
[1751236280394,1.6708,2484.8,2484.2,3.2078]
[1751236280604,0.48289,2484.5,2484.2,3.2078]
[1751236280803,0.48292,2484.3,2483.8,11.5048]
[1751236280997,1.6708,2484.8,2483.4,3.2078]
[1751236280998,4.41525,2484.0,2483.4,3.2078]
[1751236281202,3.2078,2483.7,2482.8,3.2078]
[1751236281402,8.297,2483.9,2482.6,1.17381953]
[1751236281403,3.2078,2483.4,2482.6,1.17381953]
[1751236281602,0.48313,2483.3,2482.6,0.48323]
[1751236281802,1.5401,2483.3,2482.4,10.21385596]
[1751236282005,1.5401,2483.3,2482.4,4.8394]
[1751236282205,0.48327,2482.5,2482.4,3.2078]
[1751236282598,3.1791,2483.0,2482.0,3.2078]
[1751236282803,3.2078,2483.1,2482.5,0.48327]